[Event "Late-Titled-Tuesday-Blitz-September-26-2023"]
[Site "Chess.com"]
[Date "2023.09.26"]
[Round "2"]
[White "brm72"]
[Black "Sulthankan"]
[Result "0-1"]
[WhiteElo "2489"]
[BlackElo "2327"]
[TimeControl "180+1"]
[EndTime "14:18:00 PDT"]
[Termination "Sulthankan won by checkmate"]

1. e4 {[%clk 0:03:00.9]} 1... c5 {[%clk 0:02:59.1]} 2. Nf3 {[%clk 0:03:01]} 2...
d6 {[%clk 0:02:59.3]} 3. d4 {[%clk 0:03:01.1]} 3... cxd4 {[%clk 0:03:00.2]} 4.
Nxd4 {[%clk 0:03:01.8]} 4... Nf6 {[%clk 0:03:01]} 5. Nc3 {[%clk 0:03:02.2]} 5...
a6 {[%clk 0:03:01.6]} 6. f3 {[%clk 0:03:02.6]} 6... e5 {[%clk 0:03:02.1]} 7. Nb3
{[%clk 0:03:02.8]} 7... Be6 {[%clk 0:03:02.8]} 8. Be3 {[%clk 0:03:03.1]} 8...
Be7 {[%clk 0:03:03.2]} 9. Qd2 {[%clk 0:03:03.1]} 9... O-O {[%clk 0:03:04]} 10.
O-O-O {[%clk 0:03:03.2]} 10... Nbd7 {[%clk 0:03:04.8]} 11. g4 {[%clk 0:03:03.1]}
11... b5 {[%clk 0:03:05.6]} 12. g5 {[%clk 0:03:02.8]} 12... b4 {[%clk
0:03:06.1]} 13. Ne2 {[%clk 0:03:02.1]} 13... Ne8 {[%clk 0:03:05.3]} 14. f4
{[%clk 0:03:01.5]} 14... a5 {[%clk 0:03:06]} 15. f5 {[%clk 0:02:56.9]} 15... a4
{[%clk 0:03:06.4]} 16. Nbd4 {[%clk 0:02:52.9]} 16... exd4 {[%clk 0:03:05.9]} 17.
Nxd4 {[%clk 0:02:53]} 17... b3 {[%clk 0:03:06.5]} 18. cxb3 {[%clk 0:02:37.1]}
18... axb3 {[%clk 0:03:01.1]} 19. a3 {[%clk 0:02:34.5]} 19... Qc7+ {[%clk
0:02:42.6]} 20. Kb1 {[%clk 0:02:33.6]} 20... Nc5 {[%clk 0:02:37.5]} 21. fxe6
{[%clk 0:02:30.8]} 21... fxe6 {[%clk 0:02:36.8]} 22. Bg2 {[%clk 0:02:00]} 22...
d5 {[%clk 0:02:09.3]} 23. exd5 {[%clk 0:01:57.2]} 23... Nd6 {[%clk 0:02:05.6]}
24. Nxe6 {[%clk 0:01:55.9]} 24... Nxe6 {[%clk 0:02:03.3]} 25. dxe6 {[%clk
0:01:56.8]} 25... Nc4 {[%clk 0:02:03.7]} 26. Qc1 {[%clk 0:01:38.5]} 26... Rxa3
{[%clk 0:00:53.2]} 27. bxa3 {[%clk 0:01:21.4]} 27... Nxa3+ {[%clk 0:00:44.4]}
28. Kb2 {[%clk 0:01:19.6]} 28... Nc4+ {[%clk 0:00:42.4]} 29. Kb1 {[%clk
0:01:03.4]} 29... Qa5 {[%clk 0:00:29.8]} 30. Rd2 {[%clk 0:00:59.8]} 30... Nxe3
{[%clk 0:00:23.1]} 31. Be4 {[%clk 0:00:50.1]} 31... Ba3 {[%clk 0:00:18]} 32. Rb2
{[%clk 0:00:16.6]} 32... Bxb2 {[%clk 0:00:13.2]} 33. Qxb2 {[%clk 0:00:14.8]}
33... Nc4 {[%clk 0:00:13.3]} 34. Qe2 {[%clk 0:00:09.9]} 34... Na3+ {[%clk
0:00:05.2]} 35. Kb2 {[%clk 0:00:08.9]} 35... Qb4 {[%clk 0:00:04.4]} 36. Ra1
{[%clk 0:00:08.8]} 36... Nc4+ {[%clk 0:00:04.9]} 37. Kb1 {[%clk 0:00:08.5]}
37... b2 {[%clk 0:00:05.1]} 38. Ra2 {[%clk 0:00:08.2]} 38... Nd2+ {[%clk
0:00:05.1]} 39. Kc2 {[%clk 0:00:08.6]} 39... b1=Q# {[%clk 0:00:04.9]} 0-1

[Event "Late-Titled-Tuesday-Blitz-September-26-2023"]
[Site "Chess.com"]
[Date "2023.09.26"]
[Round "2"]
[White "protectiago"]
[Black "Good_Knight_Kiss"]
[Result "0-1"]
[WhiteElo "2059"]
[BlackElo "2420"]
[TimeControl "180+1"]
[EndTime "14:18:00 PDT"]
[Termination "Good_Knight_Kiss won on time"]

1. d4 {[%clk 0:02:45.2]} 1... Nf6 {[%clk 0:02:59.5]} 2. c4 {[%clk 0:02:36.9]}
2... g6 {[%clk 0:02:59.5]} 3. Nc3 {[%clk 0:02:25.3]} 3... Bg7 {[%clk 0:02:59.5]}
4. e4 {[%clk 0:02:19]} 4... d6 {[%clk 0:02:59.9]} 5. Nf3 {[%clk 0:02:10.3]} 5...
O-O {[%clk 0:02:59.2]} 6. Be2 {[%clk 0:02:04.1]} 6... e5 {[%clk 0:02:58.8]} 7.
Be3 {[%clk 0:02:03.7]} 7... Ng4 {[%clk 0:02:58.6]} 8. Bg5 {[%clk 0:02:00.3]}
8... f6 {[%clk 0:02:58.9]} 9. Bh4 {[%clk 0:01:45.2]} 9... g5 {[%clk 0:02:58.4]}
10. Bg3 {[%clk 0:01:42.7]} 10... Nh6 {[%clk 0:02:57.9]} 11. dxe5 {[%clk
0:01:35.3]} 11... dxe5 {[%clk 0:02:58.8]} 12. Qxd8 {[%clk 0:01:32]} 12... Rxd8
{[%clk 0:02:59.7]} 13. Nd5 {[%clk 0:01:32.9]} 13... Rd7 {[%clk 0:02:42.4]} 14.
O-O-O {[%clk 0:01:18.4]} 14... Nc6 {[%clk 0:02:41.5]} 15. h4 {[%clk 0:01:11.5]}
15... g4 {[%clk 0:02:40.2]} 16. Nh2 {[%clk 0:01:11.6]} 16... Rf7 {[%clk
0:02:19.6]} 17. f4 {[%clk 0:00:36.8]} 17... Nd4 {[%clk 0:02:14]} 18. Rhe1 {[%clk
0:00:31.6]} 18... c6 {[%clk 0:01:46.4]} 19. Ne3 {[%clk 0:00:26.8]} 19... Nxe2+
{[%clk 0:01:36.5]} 20. Rxe2 {[%clk 0:00:26.2]} 20... f5 {[%clk 0:01:11.5]} 21.
exf5 {[%clk 0:00:22.3]} 21... exf4 {[%clk 0:01:02.1]} 22. Bxf4 {[%clk
0:00:20.3]} 22... Nxf5 {[%clk 0:01:02.1]} 23. Rd8+ {[%clk 0:00:11.9]} 23... Rf8
{[%clk 0:00:57.3]} 24. Rxf8+ {[%clk 0:00:11]} 24... Kxf8 {[%clk 0:00:55.1]} 25.
Nexg4 {[%clk 0:00:11.4]} 25... Nxh4 {[%clk 0:00:42.8]} 26. Bd6+ {[%clk
0:00:09.6]} 26... Kf7 {[%clk 0:00:36.2]} 27. Re7+ {[%clk 0:00:09.5]} 27... Kg6
{[%clk 0:00:35.5]} 28. Re8 {[%clk 0:00:06]} 28... Nxg2 {[%clk 0:00:24.9]} 29. c5
{[%clk 0:00:05.9]} 29... b6 {[%clk 0:00:24.7]} 30. Nf2 {[%clk 0:00:01.6]} 30...
Bb7 {[%clk 0:00:23.8]} 31. Rxa8 {[%clk 0:00:01.5]} 31... Bxa8 {[%clk 0:00:24]}
32. cxb6 {[%clk 0:00:02.4]} 32... axb6 {[%clk 0:00:24.7]} 33. Nf3 {[%clk
0:00:03.2]} 33... Bf6 {[%clk 0:00:22.8]} 34. Ne5+ {[%clk 0:00:03.9]} 34... Bxe5
{[%clk 0:00:21.7]} 35. Bxe5 {[%clk 0:00:04.3]} 35... c5 {[%clk 0:00:21.3]} 36.
Ng4 {[%clk 0:00:04]} 36... Kf5 {[%clk 0:00:19.8]} 37. Ne3+ {[%clk 0:00:02.7]}
37... Nxe3 {[%clk 0:00:19]} 0-1

[Event "Late-Titled-Tuesday-Blitz-September-26-2023"]
[Site "Chess.com"]
[Date "2023.09.26"]
[Round "2"]
[White "scandalgod"]
[Black "lamomiajunior"]
[Result "0-1"]
[WhiteElo "2499"]
[BlackElo "2732"]
[TimeControl "180+1"]
[EndTime "14:18:01 PDT"]
[Termination "lamomiajunior won by resignation"]

1. d4 {[%clk 0:03:00.9]} 1... Nf6 {[%clk 0:02:59.8]} 2. c4 {[%clk 0:03:00.5]}
2... e6 {[%clk 0:03:00.5]} 3. g3 {[%clk 0:03:00.2]} 3... d5 {[%clk 0:03:00.9]}
4. Nf3 {[%clk 0:02:58.7]} 4... Bb4+ {[%clk 0:03:01.2]} 5. Bd2 {[%clk 0:02:58.6]}
5... a5 {[%clk 0:03:01.9]} 6. Bg2 {[%clk 0:02:58.3]} 6... O-O {[%clk 0:03:02]}
7. Qc2 {[%clk 0:02:57.5]} 7... c5 {[%clk 0:03:01]} 8. O-O {[%clk 0:02:56.6]}
8... Nc6 {[%clk 0:02:55.6]} 9. dxc5 {[%clk 0:02:54.8]} 9... d4 {[%clk
0:02:55.9]} 10. Bg5 {[%clk 0:02:15.1]} 10... Bxc5 {[%clk 0:02:54.3]} 11. Nbd2
{[%clk 0:02:12.4]} 11... h6 {[%clk 0:02:51.5]} 12. Bxf6 {[%clk 0:01:55.1]} 12...
Qxf6 {[%clk 0:02:52]} 13. Ne4 {[%clk 0:01:52.6]} 13... Qe7 {[%clk 0:02:51]} 14.
a3 {[%clk 0:01:47.7]} 14... e5 {[%clk 0:02:48.5]} 15. Nxc5 {[%clk 0:01:40.8]}
15... Qxc5 {[%clk 0:02:49.4]} 16. Nd2 {[%clk 0:01:41.1]} 16... Be6 {[%clk
0:02:47.4]} 17. Rfc1 {[%clk 0:01:19.8]} 17... f5 {[%clk 0:02:47.5]} 18. Nb3
{[%clk 0:01:12.1]} 18... Qd6 {[%clk 0:02:47.9]} 19. Bd5 {[%clk 0:01:09.3]} 19...
a4 {[%clk 0:02:24.2]} 20. Nc5 {[%clk 0:01:01.5]} 20... Qxc5 {[%clk 0:02:16]} 21.
Bxe6+ {[%clk 0:00:59.3]} 21... Kh8 {[%clk 0:02:16.1]} 22. b4 {[%clk 0:00:58.4]}
22... axb3 {[%clk 0:02:14.9]} 23. Qxb3 {[%clk 0:00:58.8]} 23... e4 {[%clk
0:02:08.1]} 24. Bd5 {[%clk 0:00:55.2]} 24... Na5 {[%clk 0:02:01.2]} 25. Qb5
{[%clk 0:00:50.8]} 25... Qe7 {[%clk 0:01:53.2]} 26. Rab1 {[%clk 0:00:47]} 26...
e3 {[%clk 0:01:22.2]} 27. f4 {[%clk 0:00:37.1]} 27... d3 {[%clk 0:01:18.5]} 28.
exd3 {[%clk 0:00:23.9]} 28... e2 {[%clk 0:01:16.2]} 29. Kf2 {[%clk 0:00:20.5]}
29... Rfe8 {[%clk 0:01:16.2]} 30. Qb6 {[%clk 0:00:20.7]} 30... Ra6 {[%clk
0:00:46.5]} 31. Qd4 {[%clk 0:00:14.6]} 31... Nb3 {[%clk 0:00:46.8]} 32. Rxb3
{[%clk 0:00:05.2]} 32... e1=Q+ {[%clk 0:00:46.9]} 33. Rxe1 {[%clk 0:00:05.2]}
33... Qxe1+ {[%clk 0:00:47.8]} 34. Kg2 {[%clk 0:00:05.6]} 34... Qe2+ {[%clk
0:00:46.8]} 35. Kh3 {[%clk 0:00:05.4]} 35... Qh5+ {[%clk 0:00:41.5]} 36. Kg2
{[%clk 0:00:05.5]} 36... Rd6 {[%clk 0:00:35.3]} 37. Rb2 {[%clk 0:00:03]} 37...
b5 {[%clk 0:00:26.5]} 38. Rf2 {[%clk 0:00:02.5]} 38... bxc4 {[%clk 0:00:26]} 39.
dxc4 {[%clk 0:00:03.4]} 39... Red8 {[%clk 0:00:23.5]} 40. Qc5 {[%clk 0:00:03.7]}
40... Qd1 {[%clk 0:00:20.4]} 41. a4 {[%clk 0:00:03.6]} 41... Qxa4 {[%clk
0:00:19.5]} 42. Qd4 {[%clk 0:00:03.4]} 42... Rxd5 {[%clk 0:00:18.9]} 0-1

[Event "Late-Titled-Tuesday-Blitz-September-26-2023"]
[Site "Chess.com"]
[Date "2023.09.26"]
[Round "2"]
[White "Mbneu"]
[Black "Haykoooo0o"]
[Result "0-1"]
[WhiteElo "2247"]
[BlackElo "2469"]
[TimeControl "180+1"]
[EndTime "14:18:03 PDT"]
[Termination "Haykoooo0o won by resignation"]

1. d4 {[%clk 0:02:54.9]} 1... d5 {[%clk 0:02:59.4]} 2. c4 {[%clk 0:02:54.8]}
2... c6 {[%clk 0:02:59.4]} 3. Nc3 {[%clk 0:02:54.4]} 3... Nf6 {[%clk 0:03:00]}
4. Nf3 {[%clk 0:02:54.5]} 4... e6 {[%clk 0:03:00.1]} 5. g3 {[%clk 0:02:52.7]}
5... Nbd7 {[%clk 0:02:59.8]} 6. Bg2 {[%clk 0:02:53.2]} 6... Be7 {[%clk
0:03:00.5]} 7. O-O {[%clk 0:02:53.4]} 7... O-O {[%clk 0:03:01.2]} 8. Bf4 {[%clk
0:02:53]} 8... b6 {[%clk 0:03:01.6]} 9. Ne5 {[%clk 0:02:52.9]} 9... Bb7 {[%clk
0:02:59.8]} 10. cxd5 {[%clk 0:02:51.8]} 10... Nxd5 {[%clk 0:02:56.7]} 11. Nxd5
{[%clk 0:02:44.6]} 11... cxd5 {[%clk 0:02:57.1]} 12. Rc1 {[%clk 0:02:43.1]}
12... Nxe5 {[%clk 0:02:57.2]} 13. Bxe5 {[%clk 0:02:40.7]} 13... Rc8 {[%clk
0:02:57.8]} 14. Qb3 {[%clk 0:02:39.3]} 14... Qd7 {[%clk 0:02:57.1]} 15. Qd3
{[%clk 0:02:27.9]} 15... Rxc1 {[%clk 0:02:53.2]} 16. Rxc1 {[%clk 0:02:26.7]}
16... Rc8 {[%clk 0:02:54.1]} 17. Rc2 {[%clk 0:02:23]} 17... Ba6 {[%clk
0:02:32.5]} 18. Qd1 {[%clk 0:02:15.7]} 18... Rc6 {[%clk 0:02:20.5]} 19. e4
{[%clk 0:02:14.5]} 19... Rxc2 {[%clk 0:02:00.5]} 20. Qxc2 {[%clk 0:02:13.4]}
20... Bb7 {[%clk 0:01:59.1]} 21. exd5 {[%clk 0:02:10.1]} 21... Bxd5 {[%clk
0:01:58.7]} 22. Bxd5 {[%clk 0:02:09.6]} 22... exd5 {[%clk 0:01:53.8]} 23. Kg2
{[%clk 0:02:04.3]} 23... f6 {[%clk 0:01:49.6]} 24. Bf4 {[%clk 0:02:03.5]} 24...
g6 {[%clk 0:01:49.2]} 25. a4 {[%clk 0:01:55.6]} 25... Kf7 {[%clk 0:01:45.4]} 26.
b3 {[%clk 0:01:51.8]} 26... Qe6 {[%clk 0:01:43]} 27. f3 {[%clk 0:01:32.5]} 27...
Qd7 {[%clk 0:01:36.6]} 28. Qd3 {[%clk 0:01:30.3]} 28... Qc6 {[%clk 0:01:33.5]}
29. Qb5 {[%clk 0:01:28.4]} 29... Qc2+ {[%clk 0:01:29.1]} 30. Kh3 {[%clk
0:01:27.9]} 30... Qf5+ {[%clk 0:01:19.6]} 31. Kg2 {[%clk 0:01:27.1]} 31... g5
{[%clk 0:01:16.7]} 32. Be3 {[%clk 0:01:24.8]} 32... h5 {[%clk 0:01:11.9]} 33.
Qc6 {[%clk 0:01:20.6]} 33... g4 {[%clk 0:01:07.2]} 34. f4 {[%clk 0:01:14.1]}
34... Qe4+ {[%clk 0:01:05.9]} 35. Kf1 {[%clk 0:01:04.8]} 35... Qxe3 {[%clk
0:00:44.2]} 36. Qxd5+ {[%clk 0:01:04.4]} 36... Kg7 {[%clk 0:00:42.6]} 37. Qxh5
{[%clk 0:00:51.6]} 37... Qf3+ {[%clk 0:00:39.5]} 38. Kg1 {[%clk 0:00:51.2]}
38... Qd1+ {[%clk 0:00:31.7]} 39. Kg2 {[%clk 0:00:51.1]} 39... Qd2+ {[%clk
0:00:31.7]} 40. Kf1 {[%clk 0:00:50.5]} 40... Qd3+ {[%clk 0:00:26.6]} 41. Kg2
{[%clk 0:00:50.7]} 41... f5 {[%clk 0:00:23.3]} 42. Qe8 {[%clk 0:00:48]} 42...
Qe4+ {[%clk 0:00:21.8]} 43. Kf1 {[%clk 0:00:47.2]} 43... Qf3+ {[%clk 0:00:16.7]}
44. Kg1 {[%clk 0:00:45.1]} 44... Qe3+ {[%clk 0:00:14.7]} 45. Kg2 {[%clk
0:00:44.6]} 45... Qe4+ {[%clk 0:00:14.5]} 46. Kf1 {[%clk 0:00:43]} 46... Qh1+
{[%clk 0:00:14.4]} 47. Ke2 {[%clk 0:00:43.2]} 47... Qxh2+ {[%clk 0:00:14.5]} 48.
Kd3 {[%clk 0:00:43.3]} 48... Qxg3+ {[%clk 0:00:14.7]} 49. Kc4 {[%clk 0:00:43.4]}
49... Qe3 {[%clk 0:00:13.8]} 50. Qd7 {[%clk 0:00:39.7]} 50... Qe2+ {[%clk
0:00:14]} 51. Kd5 {[%clk 0:00:35.8]} 51... Kf6 {[%clk 0:00:13.1]} 52. Qc6+
{[%clk 0:00:33.8]} 52... Kf7 {[%clk 0:00:13.5]} 53. Qd7 {[%clk 0:00:31.8]} 53...
Qe4+ {[%clk 0:00:13.1]} 54. Kc4 {[%clk 0:00:32.1]} 54... Qe6+ {[%clk 0:00:13.7]}
55. Qxe6+ {[%clk 0:00:32.2]} 55... Kxe6 {[%clk 0:00:14.6]} 0-1

[Event "Late-Titled-Tuesday-Blitz-September-26-2023"]
[Site "Chess.com"]
[Date "2023.09.26"]
[Round "2"]
[White "angryspacevoid"]
[Black "jinxy2009"]
[Result "1-0"]
[WhiteElo "2502"]
[BlackElo "2300"]
[TimeControl "180+1"]
[EndTime "14:18:07 PDT"]
[Termination "angryspacevoid won by resignation"]

1. e4 {[%clk 0:03:00.9]} 1... c6 {[%clk 0:02:57.2]} 2. d4 {[%clk 0:02:50.8]}
2... d5 {[%clk 0:02:56.6]} 3. Nc3 {[%clk 0:02:50.8]} 3... dxe4 {[%clk
0:02:56.5]} 4. Nxe4 {[%clk 0:02:51.4]} 4... Nf6 {[%clk 0:02:57.2]} 5. Nxf6+
{[%clk 0:02:51.8]} 5... exf6 {[%clk 0:02:58.1]} 6. c3 {[%clk 0:02:51.9]} 6...
Bd6 {[%clk 0:02:57.3]} 7. Bd3 {[%clk 0:02:52.2]} 7... O-O {[%clk 0:02:57]} 8.
Qc2 {[%clk 0:02:52.3]} 8... Re8+ {[%clk 0:02:57.5]} 9. Ne2 {[%clk 0:02:52.6]}
9... h5 {[%clk 0:02:58.2]} 10. O-O {[%clk 0:02:52.9]} 10... h4 {[%clk
0:02:58.5]} 11. h3 {[%clk 0:02:50.9]} 11... Nd7 {[%clk 0:02:56.2]} 12. Bf4
{[%clk 0:02:50.1]} 12... Nf8 {[%clk 0:02:56.2]} 13. Qd2 {[%clk 0:02:45]} 13...
Ng6 {[%clk 0:02:48.8]} 14. Bxd6 {[%clk 0:02:41.7]} 14... Qxd6 {[%clk 0:02:49.1]}
15. Rfe1 {[%clk 0:02:38.2]} 15... Bd7 {[%clk 0:02:35.3]} 16. Bxg6 {[%clk
0:02:27.8]} 16... fxg6 {[%clk 0:02:34.6]} 17. Qf4 {[%clk 0:02:27.9]} 17... Qxf4
{[%clk 0:02:31.5]} 18. Nxf4 {[%clk 0:02:28.8]} 18... g5 {[%clk 0:02:32]} 19. Nd3
{[%clk 0:02:26.9]} 19... b6 {[%clk 0:02:29]} 20. f3 {[%clk 0:02:21.5]} 20... Kf7
{[%clk 0:02:28.5]} 21. Kf2 {[%clk 0:02:20.8]} 21... Bf5 {[%clk 0:02:27.8]} 22.
Rad1 {[%clk 0:02:12.3]} 22... Re7 {[%clk 0:02:20.2]} 23. Nb4 {[%clk 0:02:08.1]}
23... Bd7 {[%clk 0:02:19.3]} 24. d5 {[%clk 0:02:01.7]} 24... c5 {[%clk 0:02:01]}
25. Nc6 {[%clk 0:01:50]} 25... Rxe1 {[%clk 0:01:56.4]} 26. Kxe1 {[%clk
0:01:44.2]} 26... Rc8 {[%clk 0:01:47.9]} 27. c4 {[%clk 0:01:32.7]} 27... Rc7
{[%clk 0:01:36.8]} 28. Nb8 {[%clk 0:01:16]} 28... Rb7 {[%clk 0:01:30.4]} 29. Nc6
{[%clk 0:01:09.4]} 29... Rc7 {[%clk 0:01:28.9]} 30. Nb8 {[%clk 0:01:08.8]} 30...
Rb7 {[%clk 0:01:29.2]} 31. Nxd7 {[%clk 0:01:02.7]} 31... Rxd7 {[%clk 0:01:30.1]}
32. Kf2 {[%clk 0:01:01.5]} 32... Rd6 {[%clk 0:01:11]} 33. a3 {[%clk 0:00:52.8]}
33... a5 {[%clk 0:01:07.1]} 34. Ke3 {[%clk 0:00:47.4]} 34... f5 {[%clk
0:01:06.4]} 35. b4 {[%clk 0:00:46.4]} 35... axb4 {[%clk 0:00:55.1]} 36. axb4
{[%clk 0:00:46.5]} 36... cxb4 {[%clk 0:00:54]} 37. Kd4 {[%clk 0:00:46.5]} 37...
Ke7 {[%clk 0:00:53.6]} 38. Rb1 {[%clk 0:00:46]} 38... Kd7 {[%clk 0:00:50.2]} 39.
Ke5 {[%clk 0:00:42.3]} 39... g6 {[%clk 0:00:50.4]} 40. Rxb4 {[%clk 0:00:41.9]}
40... Kc7 {[%clk 0:00:46]} 41. Ra4 {[%clk 0:00:40.5]} 41... Rd8 {[%clk
0:00:32.1]} 42. Ra7+ {[%clk 0:00:35.9]} 42... Kb8 {[%clk 0:00:32.6]} 43. Rg7
{[%clk 0:00:36.6]} 43... Re8+ {[%clk 0:00:32.3]} 44. Kd6 {[%clk 0:00:32.1]}
44... Rc8 {[%clk 0:00:31.2]} 45. Ke7 {[%clk 0:00:23.4]} 45... Rxc4 {[%clk
0:00:27.3]} 46. d6 {[%clk 0:00:23.7]} 46... Rc1 {[%clk 0:00:21.1]} 47. d7 {[%clk
0:00:22.8]} 47... Re1+ {[%clk 0:00:20.1]} 48. Kd6 {[%clk 0:00:20.8]} 48... Rd1+
{[%clk 0:00:19.9]} 49. Kc6 {[%clk 0:00:21.3]} 49... b5 {[%clk 0:00:11.2]} 50.
Rg8+ {[%clk 0:00:19.5]} 50... Ka7 {[%clk 0:00:11.5]} 51. d8=Q {[%clk 0:00:20]}
51... Rxd8 {[%clk 0:00:11.2]} 52. Rxd8 {[%clk 0:00:20.9]} 52... b4 {[%clk
0:00:11.8]} 53. Rd4 {[%clk 0:00:20.5]} 1-0

[Event "Late-Titled-Tuesday-Blitz-September-26-2023"]
[Site "Chess.com"]
[Date "2023.09.26"]
[Round "2"]
[White "gordonzyxu"]
[Black "GreatOwl02"]
[Result "0-1"]
[WhiteElo "2153"]
[BlackElo "2448"]
[TimeControl "180+1"]
[EndTime "14:18:07 PDT"]
[Termination "GreatOwl02 won on time"]

1. e4 {[%clk 0:03:00.9]} 1... e5 {[%clk 0:02:58.9]} 2. Nf3 {[%clk 0:02:59.4]}
2... Nc6 {[%clk 0:02:58.9]} 3. Bb5 {[%clk 0:02:58.8]} 3... a6 {[%clk 0:02:58.7]}
4. Ba4 {[%clk 0:02:58.8]} 4... g6 {[%clk 0:02:54.6]} 5. c3 {[%clk 0:02:47]} 5...
Bg7 {[%clk 0:02:49.9]} 6. d4 {[%clk 0:02:46.7]} 6... b5 {[%clk 0:02:43.8]} 7.
Bb3 {[%clk 0:02:45.6]} 7... d6 {[%clk 0:02:25.4]} 8. O-O {[%clk 0:02:13.1]} 8...
Na5 {[%clk 0:01:35.9]} 9. Bc2 {[%clk 0:01:59]} 9... Ne7 {[%clk 0:01:32.6]} 10.
a4 {[%clk 0:01:54.8]} 10... Bb7 {[%clk 0:01:24.8]} 11. Bg5 {[%clk 0:01:29.8]}
11... h6 {[%clk 0:01:12.9]} 12. Bh4 {[%clk 0:01:19.1]} 12... O-O {[%clk
0:01:08.7]} 13. Nbd2 {[%clk 0:01:16.7]} 13... Re8 {[%clk 0:01:04.8]} 14. Re1
{[%clk 0:01:15.9]} 14... exd4 {[%clk 0:00:51.5]} 15. cxd4 {[%clk 0:01:11.7]}
15... c5 {[%clk 0:00:51.7]} 16. Nb3 {[%clk 0:01:07.2]} 16... Nxb3 {[%clk
0:00:37.6]} 17. Bxb3 {[%clk 0:01:08.1]} 17... c4 {[%clk 0:00:38.1]} 18. Bc2
{[%clk 0:01:08.3]} 18... Qc7 {[%clk 0:00:32.2]} 19. Qd2 {[%clk 0:01:02]} 19...
Nc6 {[%clk 0:00:31.6]} 20. Bg3 {[%clk 0:00:58.6]} 20... Rad8 {[%clk 0:00:27.9]}
21. h4 {[%clk 0:00:58]} 21... Qb6 {[%clk 0:00:27.8]} 22. Rad1 {[%clk 0:00:55.9]}
22... b4 {[%clk 0:00:27.3]} 23. Bf4 {[%clk 0:00:54.5]} 23... Kh7 {[%clk
0:00:26.9]} 24. h5 {[%clk 0:00:49.5]} 24... b3 {[%clk 0:00:27.1]} 25. hxg6+
{[%clk 0:00:48.6]} 25... fxg6 {[%clk 0:00:28]} 26. Bb1 {[%clk 0:00:48.5]} 26...
Qb4 {[%clk 0:00:26.6]} 27. Qe3 {[%clk 0:00:39]} 27... Ne7 {[%clk 0:00:23.6]} 28.
Nh4 {[%clk 0:00:30.8]} 28... Nd5 {[%clk 0:00:20.6]} 29. Qg3 {[%clk 0:00:29.3]}
29... Nxf4 {[%clk 0:00:21]} 30. Qxf4 {[%clk 0:00:28.1]} 30... Rf8 {[%clk
0:00:17.7]} 31. Qg3 {[%clk 0:00:28.1]} 31... Rf6 {[%clk 0:00:18.2]} 32. e5
{[%clk 0:00:28]} 32... dxe5 {[%clk 0:00:16.8]} 33. Nxg6 {[%clk 0:00:27.6]} 33...
e4 {[%clk 0:00:15.6]} 34. Ne5 {[%clk 0:00:24.4]} 34... Rdf8 {[%clk 0:00:15.4]}
35. d5 {[%clk 0:00:20.5]} 35... Bxd5 {[%clk 0:00:10.5]} 36. Bxe4+ {[%clk
0:00:18.5]} 36... Bxe4 {[%clk 0:00:10.5]} 37. Rxe4 {[%clk 0:00:19.4]} 37... Rxf2
{[%clk 0:00:10.4]} 38. Qg6+ {[%clk 0:00:18.8]} 38... Kg8 {[%clk 0:00:09.8]} 39.
Qe6+ {[%clk 0:00:19.1]} 39... Kh7 {[%clk 0:00:09.5]} 40. Ng6 {[%clk 0:00:18.2]}
40... R8f6 {[%clk 0:00:07.7]} 41. Qe8 {[%clk 0:00:16.4]} 41... Qb6 {[%clk
0:00:06.6]} 42. Re3 {[%clk 0:00:02.4]} 42... Re2 {[%clk 0:00:04.8]} 0-1